lending/lending_fUSD_20240411
["ID","MTS","AMOUNT","RATE_DAILY","PERIOD"]
[322153211,1712854242218,-500.0,0.00032774,2]
[322153213,1712854242227,-7432.75518461,0.00032873,2]
[322153214,1712854242237,-4448.35,0.00032873,2]
[322153215,1712854242246,-3032.25,0.00032873,2]
[322153216,1712854242255,-500.0,0.00032873,2]
[322153217,1712854242264,-500.0,0.00032873,2]
[322153218,1712854242273,-8088.43,0.00032873,2]
[322153220,1712854242283,-889.3,0.00032873,2]
[322153221,1712854242297,-2483.07,0.00032873,2]
[322153222,1712854242307,-3896.65,0.00032873,2]
[322153223,1712854242318,-2626.37,0.00032873,2]
[322153224,1712854242328,-8704.57,0.00032873,2]
[322153225,1712854242337,-4683.97,0.00032873,2]
[322153226,1712854242347,-500.0,0.00032873,2]
[322153227,1712854242356,-671.48,0.00032873,2]
[322153228,1712854242366,-500.0,0.00032873,2]
[322153229,1712854242375,-1380.1,0.00032873,2]
[322153230,1712854242385,-7142.24,0.00032873,2]
[322153231,1712854242396,-585.73,0.00032873,2]
[322153232,1712854242405,-3179.31,0.00032873,2]
[322153233,1712854242414,-2017.78,0.00032873,2]
[322153235,1712854242423,-500.0,0.00032873,2]
[322153237,1712854242433,-500.0,0.00032873,2]
[322153239,1712854242442,-284.29228612,0.00032873,2]
[322153241,1712854242452,-500.0,0.00032873,2]
[322153244,1712854242462,-509.21642673,0.00032873,2]
[322153247,1712854242471,-5103.98,0.00032873,2]
[322153249,1712854242482,-500.0,0.00032873,2]
[322153251,1712854242491,-500.0,0.00032873,2]
[322153253,1712854242501,-4986.36,0.00032873,2]
[322153255,1712854242510,-1267.43,0.00032873,2]
[322153257,1712854242520,-500.0,0.00032873,2]
[322153259,1712854242529,-1511.83,0.00032873,2]
[322153261,1712854242545,-539.7756772,0.00032873,2]
[322153263,1712854242555,-500.0,0.00032873,2]
[322153264,1712854242566,-3602.17,0.00032873,2]
[322153265,1712854242576,-2614.53,0.00032873,2]
[322153266,1712854242586,-2185.18,0.00032873,2]
[322153267,1712854242596,-13651.84,0.00032873,2]
[322153268,1712854242606,-254.90422389,0.00032873,2]
[322153269,1712854242616,-25178.1,0.00032873,2]
[322153271,1712854242628,-9782.05,0.00032873,2]
[322153272,1712854242638,-4026.5,0.00032873,2]
[322153273,1712854242648,-3748.84,0.00032873,2]
[322153274,1712854242657,-500.0,0.00032873,2]
[322153275,1712854242667,-1635.55,0.00032873,2]
[322153276,1712854242677,-500.0,0.00032873,2]
[322153277,1712854242687,-7565.23,0.00032873,2]
[322153278,1712854242696,-500.0,0.00032873,2]
[322153279,1712854242706,-270.21740544,0.00032873,2]
[322153280,1712854242715,-4430.17,0.00032873,2]
[322153281,1712854242725,-11460.63,0.00032873,2]
[322153282,1712854242734,-500.0,0.00032873,2]
[322153283,1712854242744,-25857.53,0.00032873,2]
[322153284,1712854242756,-2569.92,0.00032873,2]
[322153285,1712854242765,-500.0,0.00032873,2]
[322153286,1712854242775,-850.26,0.00032873,2]
[322153287,1712854242786,-1003.13,0.00032873,2]
[322153288,1712854242797,-500.0,0.00032873,2]
[322153289,1712854242807,-3078.81,0.00032873,2]
[322153290,1712854242817,-5588.77,0.00032873,2]
[322153291,1712854242827,-500.0,0.00032873,2]
[322153292,1712854242838,-1024.11,0.00032873,2]
[322153293,1712854242848,-500.0,0.00032873,2]
[322153294,1712854242858,-500.0,0.00032873,2]
[322153295,1712854242868,-4414.19,0.00032873,2]
[322153296,1712854242878,-500.0,0.00032873,2]
[322153297,1712854242888,-25464.536063,0.00032873,2]
[322153298,1712854242901,-41699.633937,0.00032873,2]
[322153299,1712854242911,-216.12209256,0.00032873,2]
[322153300,1712854242924,-3750.06790744,0.00032873,2]
[322153301,1712854242934,-500.0,0.00032873,2]
[322153302,1712854242943,-4288.32494399,0.00032873,2]
[322153303,1712854242956,-3008.05505601,0.00032873,2]
[322153304,1712854242965,-2386.78,0.00032873,2]
[322153305,1712854242975,-2047.16,0.00032873,2]
[322153306,1712854242984,-3255.72,0.00032873,2]
[322153307,1712854242994,-544.22,0.00032873,2]
[322153308,1712854243004,-1541.55,0.00032873,2]
[322153309,1712854243013,-4092.28,0.00032873,2]
[322153310,1712854243023,-300.41736464,0.00032873,2]
[322153311,1712854243038,-199.58263536,0.00032873,2]
[322153312,1712854243047,-1401.36378988,0.00032873,2]
[322153313,1712854243059,-276.8256,0.00032873,2]
[322153314,1712854243072,-292.485868,0.00032873,2]
[322153315,1712854243083,-2939.63448847,0.00032873,2]
[322153316,1712854243592,-844.14025365,0.00032873,2]
[322153317,1712854243601,-2539.15,0.00032873,2]
[322153318,1712854243611,-500.0,0.00032873,2]
[322153319,1712854243621,-500.0,0.00032873,2]
[322153320,1712854243631,-578.14,0.00032873,2]
[322153321,1712854243641,-9233.13,0.00032873,2]
[322153322,1712854243650,-4223.2,0.00032873,2]
[322153323,1712854243659,-9893.66,0.00032873,2]
[322153324,1712854243668,-212.51976572,0.00032873,2]
[322153325,1712854243677,-500.0,0.00032873,2]
[322153326,1712854243686,-943.54,0.00032873,2]
[322153327,1712854243696,-2101.75986757,0.00032874,4]
[322153328,1712854243706,-863.593082,0.00032874,4]
[322153329,1712854243715,-156.56249745,0.00032874,4]
[322153330,1712854243724,-26864.81615329,0.00032874,4]
[322153331,1712854243778,-1724.19999985,0.00032874,4]
[322153332,1712854243790,-6108.49210015,0.00032874,4]
[322153333,1712854243799,-193.93233813,0.00032874,4]
[322153334,1712854243810,-250.42974741,0.00032874,4]
[322153335,1712854243820,-155.0604962,0.00032874,4]
[322153336,1712854243829,-155.6195763,0.00032874,4]
[322153337,1712854243840,-206.83096015,0.00032874,4]
[322153338,1712854243852,-155.0,0.00032874,4]
[322153339,1712854243863,-190.0,0.00032874,4]
[322153340,1712854243873,-155.25282702,0.00032874,4]
[322153341,1712854243883,-155.789764,0.00032874,4]
[322153342,1712854243894,-311.7785482,0.00032874,2]
[322153343,1712854243904,-487.67935581,0.00032874,4]
[322153344,1712854243916,-183.66929566,0.00032874,4]
[322153345,1712854243926,-215.47501592,0.00032874,4]
[322153346,1712854243936,-485.66071093,0.00032874,4]
[322153347,1712854243946,-200.57944866,0.00032874,4]
[322153348,1712854243956,-155.0,0.00032874,4]
[322153349,1712854243966,-156.15203011,0.00032874,4]
[322153350,1712854243976,-156.91334829,0.00032874,4]
[322153351,1712854243987,-210.02388994,0.00032874,4]
[322153352,1712854243998,-276.2164114,0.00032874,4]
[322153353,1712854244008,-1599.29640351,0.00032874,4]
[322153354,1712854244018,-369.14774924,0.00032874,4]
[322153355,1712854244029,-190.88222919,0.00032874,4]
[322153356,1712854244040,-404.64904751,0.00032874,4]
[322153357,1712854244049,-6626.09518636,0.00032874,4]
[322153358,1712854244062,-1741.8,0.00032874,4]
[322153359,1712854244085,-840.71707407,0.00032874,4]
[322153401,1712854246149,-280.246,0.0002685,2]
[322153403,1712854246159,-42.5572239,0.00031687,2]
[322153406,1712854246171,-973.1594761,0.00031687,2]
[322153408,1712854246181,-155.47530298,0.00032772,4]
[322153410,1712854246190,-500.0,0.00032774,2]
[322153412,1712854246200,-500.0,0.00032774,2]
[322153413,1712854246209,-500.0,0.00032774,2]
[322153416,1712854246219,-500.0,0.00032775,2]
[322153418,1712854246228,-500.0,0.00032873,2]
[322153419,1712854246237,-268.18942947,0.00032873,2]
[322153422,1712854246249,-231.81057053,0.00032873,2]
[322153424,1712854246258,-2116.22863276,0.00032874,4]
[322153426,1712854246270,-3983.30357197,0.00032874,4]
[322153428,1712854246281,-3039.03368371,0.00032874,4]
[322153997,1712854372785,869.01115593,0.00033502,120]
[322153998,1712854384647,-155.0,0.00020508,2]
[322153999,1712854384667,-1062.27095016,0.00020509,2]
[322154000,1712854384687,-508.54130943,0.0002051,2]
[322154001,1712854384707,-1288.72478667,0.00020511,2]
[322154002,1712854384726,-16129.03748245,0.000208,2]
[322154003,1712854384746,-500.0,0.00020993,2]
[322154004,1712854384768,-407.92398347,0.00020993,2]
[322154005,1712854384790,-479948.50148782,0.00020994,2]
[322154006,1712854425035,1248.1231469,0.0003,30]
[322154007,1712854458376,1000.0,0.0002,2]
[322154014,1712855098447,8900.0,0.0002,2]
[322154015,1712855098473,10742.77527935,0.0002,2]
[322154016,1712855118437,5838.77076057,0.0002,2]
[322154051,1712855431798,-496.701815,0.00020855,2]
[322154052,1712855431962,-565.56913516,0.00020855,2]
[322154053,1712855431972,-508.54130943,0.00020856,2]
[322154054,1712855431983,-620.76154745,0.00020857,2]
[322154055,1712855431994,-348.6267,0.00020894,2]
[322154056,1712855432005,-7014.87051082,0.00020895,2]
[322154057,1712855432015,-26015.63079714,0.00020895,2]
[322154058,1712855432029,-2540.66716873,0.00020895,2]
[322154059,1712855432052,-4146.06365436,0.00020895,2]
[322154060,1712855432067,-205.89797358,0.00020984,2]
[322154121,1712855437642,-109.95622,0.00020984,2]
[322154122,1712855437655,-279.57298736,0.00020984,2]
[322154123,1712855437665,-279.57298736,0.00020984,2]
[322154124,1712855437675,-279.57298736,0.00020984,2]
[322154125,1712855437685,-279.57298736,0.00020984,2]
[322154126,1712855437694,-279.57298736,0.00020984,2]
[322154127,1712855437705,-279.57298736,0.00020984,2]
[322154128,1712855437714,-279.57298736,0.00020984,2]
[322154129,1712855437724,-279.57298736,0.00020984,2]
[322154130,1712855437733,-279.57298736,0.00020984,2]
[322154131,1712855437742,-279.57298736,0.00020984,2]
[322154132,1712855437752,-279.57298736,0.00020984,2]
[322154133,1712855437762,-279.57298736,0.00020984,2]
[322154134,1712855437772,-279.57298736,0.00020984,2]
[322154135,1712855437781,-279.57298736,0.00020984,2]
[322154136,1712855437791,-279.57298736,0.00020984,2]
[322154137,1712855437800,-279.57298736,0.00020984,2]
[322154138,1712855437810,-279.57298736,0.00020984,2]
[322154139,1712855437832,-279.57298736,0.00020984,2]
[322154140,1712855437858,-279.57298736,0.00020984,2]
[322154141,1712855437896,-279.57298736,0.00020984,2]
[322154142,1712855437942,-279.57298736,0.00020984,2]
[322154143,1712855437979,-279.57298736,0.00020984,2]
[322154144,1712855437988,-279.57298736,0.00020984,2]
[322154145,1712855437998,-279.57298736,0.00020984,2]
[322154146,1712855438008,-279.57298736,0.00020985,2]
[322154147,1712855438017,-233.20418876,0.00020992,2]
[322154149,1712855438027,-155.16998558,0.00020992,2]
[322154151,1712855438036,-155.23176943,0.00020992,2]
[322154153,1712855438045,-223.89922122,0.00020992,2]
[322154155,1712855438054,-365.36033927,0.00020992,2]
[322154156,1712855438064,-157.68997505,0.00020992,2]
[322154157,1712855438073,-155.0,0.00020992,2]
[322154158,1712855438083,-1637.11117101,0.00020992,2]
[322154159,1712855438093,-395.06251376,0.00020992,2]
[322154160,1712855438104,-198.02048487,0.00020992,2]
[322154161,1712855438113,-1830.85054705,0.00020992,2]
[322154162,1712855438122,-155.0,0.00020992,2]
[322154163,1712855438132,-953.7472112,0.00020992,2]
[322154164,1712855438142,-1237.09571418,0.00020993,2]
[322154165,1712855438151,-173431.23069877,0.00020994,2]
[322154166,1712855438162,-4395.40086432,0.00020995,2]
[322154169,1712855438173,-550.0,0.00021,3]
[322154172,1712855438184,-463.15,0.00021302,2]
[322154175,1712855438194,-279.57298736,0.0002199,2]
[322154179,1712855438203,-783.81607988,0.00022,2]
[322154183,1712855438212,-536.07,0.00022,2]
[322154186,1712855438221,-279.57298736,0.00022094,2]
[322154189,1712855438231,-279.57298736,0.00022094,2]
[322154191,1712855438241,-279.57298736,0.00022094,2]
[322154193,1712855438250,-279.57298736,0.00022094,2]
[322154195,1712855438259,-160.53,0.00022094,2]
[322154197,1712855438269,-7014.87051075,0.00022104,2]
[322154199,1712855438279,-32702.36162016,0.00022104,2]
[322154200,1712855438289,-153.53,0.00022885,2]
[322154201,1712855438298,-23880.0,0.00022885,2]
[322154202,1712855438307,-166.37,0.00022912,2]
[322154203,1712855438317,-600.0,0.00023,3]
[322154204,1712855438326,-307.11461416,0.00023,2]
[322154205,1712855438335,-250.0,0.00023024,2]
[322154206,1712855438345,-203.24,0.00023054,2]
[322154207,1712855438354,-1073.32,0.00023258,2]
[322154209,1712855438364,-160.6,0.00023277,2]
[322154211,1712855438373,-7014.87051075,0.00023314,2]
[322154213,1712855438382,-32702.36162016,0.00023314,2]
[322154215,1712855438391,-160.6,0.0002352,2]
[322154217,1712855438400,-463.15,0.00023566,2]
[322154219,1712855438412,-160.6,0.00023763,2]
[322154221,1712855438421,-167.35,0.00023807,2]
[322154222,1712855438430,-160.6,0.00024005,2]
[322154223,1712855438438,-160.6,0.00024248,2]
[322154224,1712855438448,-1000.0,0.00024484,2]
[322154225,1712855438457,-160.6,0.0002449,2]
[322154226,1712855438466,-7014.87051075,0.00024523,2]
[322154227,1712855438475,-32702.36162016,0.00024523,2]
[322154228,1712855438485,-183.83487627,0.00024647,2]
[322154229,1712855438494,-2014.28390047,0.000248,2]
[322154230,1712855438504,-250.0,0.00024916,2]
[322154231,1712855438514,-182.0,0.00024968,2]
[322154232,1712855438523,-650.0,0.00025,3]
[322154233,1712855438532,-1361.79189436,0.00025,2]
[322154234,1712855438542,-182.0,0.00025031,2]
[322154235,1712855438551,-182.0,0.00025093,2]
[322154236,1712855438561,-477.66,0.00025153,2]
[322154237,1712855438571,-250.0,0.00025261,2]
[322154238,1712855438580,-181.27,0.0002556,2]
[322154239,1712855438589,-183.83487621,0.00025666,2]
[322154240,1712855438600,-319.62907944,0.0002573,2]
[322154241,1712855438610,-7014.87051075,0.00025733,2]
[322154242,1712855438619,-32702.36162016,0.00025733,2]
[322154243,1712855438629,-463.15,0.0002583,2]
[322154249,1712855438927,-183.83487627,0.00025832,2]
[322154251,1712855438942,-9921.11000002,0.00025957,2]
[322154253,1712855438951,-1073.32,0.00025997,2]
[322154255,1712855438960,-444.10021711,0.00026,2]
[322154258,1712855438970,-225.0,0.0002631,2]
[322154260,1712855438979,-183.83487621,0.00026682,3]
[322154261,1712855438989,-183.83487621,0.00026685,3]
[322154262,1712855438998,-5711.0,0.0002675,2]
[322154263,1712855439007,-4796.0,0.0002675,2]
[322154264,1712855439016,-305.808,0.0002675,2]
[322154265,1712855439025,-2463.0,0.0002675,2]
[322154266,1712855439034,-573.534,0.0002675,2]
[322154267,1712855439043,-1076.589,0.0002675,2]
[322154268,1712855439052,-319.6290794,0.00026859,2]
[322154269,1712855439061,-7014.87051075,0.00026942,2]
[322154270,1712855439070,-32702.36162016,0.00026942,2]
[322154271,1712855439079,-700.0,0.00027,3]
[322154272,1712855439088,-181.27,0.00027368,2]
[322154273,1712855439101,-183.83487621,0.00027531,3]
[322154274,1712855439110,-1000.0,0.00027544,2]
[322154275,1712855439119,-183.83487621,0.00027704,3]
[322154276,1712855439127,-319.6290794,0.00027987,2]
[322154277,1712855439137,-463.15,0.00028094,2]
[322154278,1712855439146,-7014.87051075,0.00028152,2]
[322154279,1712855439155,-9550.90066061,0.00028152,2]
[322154280,1712855439170,-23151.46095955,0.00028152,2]
[322154281,1712855439182,-183.83487621,0.00028381,4]
[322154282,1712855439191,-585.0,0.000286,2]
[322154283,1712855439200,-3176.0,0.000286,2]
[322154284,1712855439209,-183.83487621,0.00028723,4]
[322154285,1712855439219,-1073.32,0.00028737,2]
[322154286,1712855439228,-750.0,0.00029,3]
[322154287,1712855439237,-319.6290794,0.00029116,2]
[322154288,1712855439246,-181.27,0.00029176,2]
[322154289,1712855439254,-183.83487621,0.00029231,4]
[322154290,1712855439264,-7014.87051075,0.00029361,2]
[322154291,1712855439273,-28517.46423663,0.00029361,2]
[322154292,1712855439286,-4184.89738353,0.00029361,2]
[322154293,1712855439295,-441.09329125,0.000295,3]
[322154294,1712855439305,-269.06271263,0.00029585,2]
[322154295,1712855439314,-183.83487621,0.00029742,4]
[322154296,1712855439323,-160.87781007,0.0002999,2]
[322154297,1712855439332,-4130.38540546,0.0003,3]
[322154298,1712855439343,-15869.61459454,0.0003,3]
[322154299,1712855439353,-155.0,0.0003,2]
[322154300,1712855439362,-5669.53624761,0.0003,2]
[322154301,1712855439371,-37039.89625009,0.0003,2]
[322154302,1712855439383,-1131.5499995,0.0003,2]
[322154303,1712855439394,-1076.96852306,0.0003,2]
[322154304,1712855439408,-60937.09916137,0.0003,2]
[322154305,1712855439417,-5995.80667374,0.0003,2]
[322154306,1712855439426,-1629.5764358,0.00030036,4]
[322154307,1712855439435,-1589.52660828,0.00030036,2]
[322154308,1712855439444,-152.77070344,0.00030037,2]
[322154309,1712855439454,-183.83487621,0.00030081,4]
[322154310,1712855439463,-250.0,0.000301,2]
[322154311,1712855439472,-250.0,0.000301,2]
[322154313,1712855439481,-808.69,0.00030126,10]
[322154315,1712855439490,-355.81,0.00030126,10]
[322154317,1712855439500,-702.44,0.00030136,2]
[322154319,1712855439509,-500.0,0.00030136,2]
[322154320,1712855439518,-500.0,0.00030136,2]
[322154321,1712855439528,-500.0,0.00030136,2]
[322154322,1712855439537,-500.0,0.00030136,2]
[322154323,1712855439546,-500.0,0.00030136,2]
[322154324,1712855439555,-500.0,0.00030136,2]
[322154325,1712855439564,-500.0,0.00030136,2]
[322154326,1712855439573,-901.49,0.00030136,2]
[322154327,1712855439583,-500.0,0.00030136,2]
[322154328,1712855439592,-500.0,0.00030136,2]
[322154329,1712855439601,-500.0,0.00030136,2]
[322154330,1712855439610,-500.0,0.00030136,2]
[322154331,1712855439620,-507.88,0.00030136,2]
[322154332,1712855439629,-603.96,0.00030136,2]
[322154333,1712855439638,-500.0,0.00030136,2]
[322154334,1712855439647,-500.0,0.00030136,2]
[322154335,1712855439656,-873.67,0.00030136,2]
[322154336,1712855439666,-500.0,0.00030136,2]
[322154337,1712855439675,-761.59,0.00030136,2]
[322154338,1712855439685,-500.0,0.00030136,2]
[322154339,1712855439694,-547.60943003,0.00030136,2]
[322154340,1712855439702,-691.94,0.00030136,2]
[322154341,1712855439711,-500.0,0.00030136,2]
[322154342,1712855439720,-513.87,0.00030136,2]
[322154343,1712855439729,-646.22,0.00030136,2]
[322154344,1712855439738,-587.23,0.00030136,2]
[322154345,1712855439747,-500.0,0.00030136,2]
[322154346,1712855439756,-500.0,0.00030136,2]
[322154347,1712855439765,-500.0,0.00030136,2]
[322154348,1712855439775,-500.0,0.00030136,2]
[322154349,1712855439784,-500.0,0.00030136,2]
[322154350,1712855439793,-802.84,0.00030136,2]
[322154351,1712855439803,-500.0,0.00030136,2]
[322154352,1712855439811,-500.0,0.00030136,2]
[322154353,1712855439821,-500.0,0.00030136,2]
[322154354,1712855439830,-500.0,0.00030136,2]
[322154355,1712855439839,-500.0,0.00030136,2]
[322154356,1712855439848,-702.48,0.00030136,2]
[322154357,1712855439858,-830.62,0.00030136,2]
[322154358,1712855439867,-500.0,0.00030136,2]
[322154359,1712855439876,-996.94123912,0.00030136,2]
[322154360,1712855439885,-910.26,0.00030136,2]
[322154361,1712855439895,-500.0,0.00030136,2]
[322154362,1712855439904,-500.0,0.00030136,2]
[322154363,1712855439918,-745.34,0.00030136,2]
[322154364,1712855439927,-686.82,0.00030136,2]
[322154365,1712855439936,-311.80908508,0.00030136,2]
[322154366,1712855439945,-2297.61,0.00030136,2]
[322154367,1712855439955,-500.0,0.00030136,2]
[322154368,1712855439964,-500.0,0.00030136,2]
[322154369,1712855439973,-500.0,0.00030136,2]
[322154370,1712855439982,-510.76049537,0.00030136,2]
[322154371,1712855439991,-500.0,0.00030136,2]
[322154372,1712855440000,-1196.42,0.00030136,2]
[322154373,1712855440010,-500.0,0.00030136,2]
[322154374,1712855440019,-830.95,0.00030136,2]
[322154375,1712855440027,-500.0,0.00030136,2]
[322154376,1712855440036,-580.65,0.00030136,2]
[322154377,1712855440045,-274.96758743,0.00030136,2]
[322154378,1712855440055,-500.0,0.00030136,2]
[322154379,1712855440064,-505.46227101,0.00030136,2]
[322154380,1712855440073,-852.41,0.00030136,2]
[322154381,1712855440083,-500.0,0.00030136,2]
[322154382,1712855440094,-500.0,0.00030136,2]
[322154384,1712855440104,-500.0,0.00030136,2]
[322154386,1712855440114,-500.0,0.00030136,2]
[322154388,1712855440123,-1831.84,0.00030136,2]
[322154390,1712855440132,-500.0,0.00030136,2]
[322154392,1712855440141,-500.0,0.00030136,2]
[322154394,1712855440150,-500.0,0.00030136,2]
[322154396,1712855440161,-500.0,0.00030136,2]
[322154398,1712855440172,-564.04412171,0.00030136,2]
[322154400,1712855440182,-500.0,0.00030136,2]
[322154402,1712855440192,-512.08794274,0.00030136,2]
[322154404,1712855440201,-500.0,0.00030136,2]
[322154406,1712855440211,-797.48,0.00030136,2]
[322154407,1712855440220,-500.0,0.00030136,2]
[322154408,1712855440230,-490.17,0.00030136,2]
[322154409,1712855440239,-500.0,0.00030136,2]
[322154410,1712855440248,-1208.91,0.00030136,2]
[322154411,1712855440258,-500.0,0.00030136,2]
[322154412,1712855440267,-500.0,0.00030136,2]
[322154413,1712855440277,-500.0,0.00030136,2]
[322154414,1712855440286,-500.0,0.00030136,2]
[322154415,1712855440295,-1795.62,0.00030136,2]
[322154416,1712855440305,-500.0,0.00030136,2]
[322154417,1712855440314,-500.0,0.00030136,2]
[322154418,1712855440324,-500.0,0.00030136,2]
[322154419,1712855440334,-500.0,0.00030136,2]
[322154420,1712855440343,-500.0,0.00030136,2]
[322154421,1712855440352,-500.0,0.00030136,2]
[322154422,1712855440362,-500.0,0.00030136,2]
[322154423,1712855440371,-500.0,0.00030136,2]
[322154424,1712855440380,-1070.75,0.00030136,2]
[322154425,1712855440389,-500.0,0.00030136,2]
[322154426,1712855440399,-500.0,0.00030136,2]
[322154427,1712855440409,-500.0,0.00030136,2]
[322154428,1712855440419,-588.11,0.00030136,2]
[322154429,1712855440429,-500.0,0.00030136,2]
[322154430,1712855440438,-514.786569,0.00030136,2]
[322154431,1712855440447,-313.07467285,0.00030136,2]
[322154432,1712855440456,-500.0,0.00030136,2]
[322154433,1712855440467,-500.0,0.00030136,2]
[322154434,1712855440477,-500.0,0.00030136,2]
[322154435,1712855440486,-599.24,0.00030136,2]
[322154436,1712855440495,-500.0,0.00030136,2]
[322154437,1712855440504,-500.0,0.00030136,2]
[322154438,1712855440513,-500.0,0.00030136,2]
[322154439,1712855440523,-288.45460833,0.00030136,2]
[322154440,1712855441089,-1800.89539167,0.00030136,2]
[322154441,1712855441102,-500.0,0.00030136,2]
[322154442,1712855441110,-256.5107066,0.00030136,2]
[322154443,1712855441123,-244.16042201,0.00030136,2]
[322154444,1712855441132,-500.0,0.00030136,2]
[322154445,1712855441142,-500.98531746,0.00030136,2]
[322154446,1712855441152,-500.0,0.00030136,2]
[322154447,1712855441164,-500.0,0.00030136,2]
[322154448,1712855441175,-500.0,0.00030136,2]
[322154449,1712855441184,-115.15338112,0.00030136,2]
[322154450,1712855441195,-384.84661888,0.00030136,2]
[322154451,1712855441205,-500.0,0.00030136,2]
[322154452,1712855441214,-500.0,0.00030136,2]
[322154453,1712855441223,-500.0,0.00030136,2]
[322154454,1712855441232,-500.0,0.00030136,2]
[322154455,1712855441241,-1887.1,0.00030136,2]
[322154456,1712855441251,-623.75742647,0.00030136,2]
[322154457,1712855441260,-500.0,0.00030136,2]
[322154458,1712855441270,-500.0,0.00030136,2]
[322154459,1712855441279,-2056.65,0.00030136,2]
[322154460,1712855441289,-533.14260459,0.00030136,2]
[322154461,1712855441298,-500.0,0.00030136,2]
[322154462,1712855441307,-500.0,0.00030136,2]
[322154463,1712855441316,-500.0,0.00030136,2]
[322154464,1712855441324,-14.50335006,0.00030136,2]
[322154465,1712855441337,-485.49664994,0.00030136,2]
[322154466,1712855441346,-500.0,0.00030136,2]
[322154467,1712855441355,-404.02229363,0.00030136,2]
[322154468,1712855441364,-500.0,0.00030136,2]
[322154469,1712855441373,-500.0,0.00030136,2]
[322154470,1712855441383,-2418.48,0.00030136,2]
[322154471,1712855441391,-769.28,0.00030136,2]
[322154472,1712855441400,-500.0,0.00030136,2]
[322154473,1712855441411,-2658.44,0.00030136,2]
[322154474,1712855441420,-621.43380583,0.00030136,2]
[322154475,1712855441429,-500.0,0.00030136,2]
[322154476,1712855441439,-500.0,0.00030136,2]
[322154477,1712855441447,-500.0,0.00030136,2]
[322154478,1712855441456,-945.67,0.00030136,2]
[322154479,1712855441466,-545.24,0.00030136,2]
[322154480,1712855441476,-500.0,0.00030136,2]
[322154481,1712855441486,-982.97,0.00030136,2]
[322154482,1712855441496,-1481.48,0.00030136,2]
[322154483,1712855441506,-932.1,0.00030136,2]
[322154484,1712855441517,-471.15247544,0.00030136,2]
[322154485,1712855441530,-28.84752456,0.00030136,2]
[322154486,1712855441540,-1159.46,0.00030136,2]
[322154487,1712855441550,-217.68247544,0.00030136,2]
[322154488,1712855442189,-105.23413659,0.00030136,2]
[322154489,1712855442199,-500.0,0.00030136,2]
[322154490,1712855442210,-463.3978635,0.00030136,2]
[322154491,1712855442224,-36.6021365,0.00030136,2]
[322154492,1712855442235,-500.0,0.00030136,2]
[322154493,1712855442245,-2261.96,0.00030136,2]
[322154494,1712855442257,-500.0,0.00030136,2]
[322154495,1712855442267,-1369.72,0.00030136,2]
[322154496,1712855442277,-500.0,0.00030136,2]
[322154497,1712855442287,-500.0,0.00030136,2]
[322154498,1712855442296,-500.0,0.00030136,2]
[322154499,1712855442306,-483.40501605,0.00030136,2]
[322154500,1712855442315,-500.0,0.00030136,2]
[322154501,1712855442324,-1150.91,0.00030136,2]
[322154502,1712855442332,-480.15904741,0.00030136,2]
[322154503,1712855442354,-19.84095259,0.00030136,2]
[322154504,1712855442363,-500.0,0.00030136,2]
[322154505,1712855442373,-500.0,0.00030136,2]
[322154506,1712855442382,-500.0,0.00030136,2]
[322154507,1712855442391,-500.0,0.00030136,2]
[322154508,1712855442400,-500.0,0.00030136,2]
[322154509,1712855442411,-516.47,0.00030136,2]
[322154510,1712855442420,-500.0,0.00030136,2]
[322154511,1712855442430,-500.0,0.00030136,2]